bitfinex/quotes_ETHUSD_20240618
["timestamp","ask_amount","ask_price","bid_price","bid_amount"]
[1718737305226,2.93514,3407.0,3406.5,2.93555]
[1718737305425,4.56813501,3407.0,3406.5,2.93555]
[1718737305626,2.93523,3406.9,3406.5,2.93555]
[1718737305945,6.74806898,3407.2,3406.0,2.93598]
[1718737306343,2.93506,3407.1,3406.7,2.93534]
[1718737306739,2.93506,3407.1,3406.8,2.9353]
[1718737306942,4.1968609,3407.1,3406.8,2.9353]
[1718737307441,2.93515,3407.0,3406.6,2.93546]
[1718737307643,2.93515,3407.0,3406.5,2.93555]
[1718737308047,2.93515,3407.0,3406.6,2.93546]
[1718737308447,2.93515,3407.0,3406.7,2.93537]
[1718737308757,4.1968509,3407.1,3406.8,2.93528]
[1718737309643,4.1968509,3407.1,3406.7,2.93537]
[1718737309844,2.93505,3407.1,3406.7,2.93537]
[1718737310031,2.93505,3407.1,3406.8,2.93529]
[1718737310352,6.74806898,3407.2,3406.9,2.93515]
[1718737311050,9.68303898,3407.2,3406.9,2.93515]
[1718737311253,2.93504,3407.1,3406.6,2.93547]
[1718737311449,6.74806898,3407.2,3406.8,2.93527]
[1718737311647,6.74806898,3407.2,3406.7,5.8707]
[1718737311968,6.74806898,3407.2,3406.9,2.93519]
[1718737313064,2.93487,3407.3,3406.9,2.93519]
[1718737313362,2.9349,3407.3,3407.0,2.93509]
[1718737313534,2.9349,3407.3,3406.9,2.9352]
[1718737314563,5.20388,3407.6,3407.0,2.93512]
[1718737314770,5.20388,3407.6,3406.8,2.9353]
[1718737314771,2.3042,3408.1,3407.4,2.93472]
[1718737314936,2.3042,3408.1,3407.5,2.93465]
[1718737314937,2.93437,3407.9,3407.5,2.93465]
[1718737315135,2.93437,3407.9,3407.2,2.9349]
[1718737315136,2.93455,3407.7,3407.3,2.93483]
[1718737315469,2.93479,3407.4,3407.0,2.93506]
[1718737315629,2.93479,3407.4,3406.7,2.93538]
[1718737315630,2.3042,3408.1,3406.7,2.93537]
[1718737315829,2.93493,3407.3,3406.9,2.9352]
[1718737316075,2.93463,3407.6,3406.9,2.9352]
[1718737316076,2.93496,3407.2,3406.9,2.9352]
[1718737316377,2.93506,3407.1,3406.7,2.93537]
[1718737316532,2.93484,3407.4,3406.7,2.93537]
[1718737317530,2.93511,3407.1,3406.7,2.93537]
[1718737317856,2.93511,3407.1,3406.8,2.93529]
[1718737318364,2.93497,3407.2,3406.8,2.93529]
[1718737318565,2.93465,3407.6,3407.0,2.93504]
[1718737318772,2.93479,3407.4,3407.0,2.93504]
[1718737318968,0.6377162,3407.5,3407.1,2.93504]
[1718737319161,2.93463,3407.6,3407.3,2.93483]
[1718737319358,3.44237683,3407.9,3407.6,2.93461]
[1718737319561,2.93394,3408.4,3407.0,2.113]
[1718737319761,2.93394,3408.4,3407.9,2.93428]
[1718737319762,2.93403,3408.3,3407.9,2.93428]
[1718737320072,2.93403,3408.3,3407.4,2.113]
[1718737320073,2.9341,3408.2,3407.7,2.93448]
[1718737320293,2.93436,3407.9,3407.3,2.93487]
[1718737320470,2.93436,3407.9,3407.0,2.113]
[1718737320471,2.9346,3407.7,3407.2,2.93495]
[1718737320854,2.93436,3407.9,3407.0,2.113]
[1718737320855,2.93446,3407.8,3407.4,2.93478]
[1718737321509,2.93464,3407.6,3407.1,2.93503]
[1718737321678,2.93464,3407.6,3407.2,2.93488]
[1718737322458,2.4821,3408.5,3407.0,2.113]
[1718737322690,2.93488,3407.3,3406.9,2.9352]
[1718737323880,2.3603,3407.6,3406.7,2.9353]
[1718737324071,2.93487,3407.4,3407.1,2.93501]
[1718737324275,2.93472,3407.5,3407.1,2.93498]
[1718737324480,2.93472,3407.5,3406.6,2.9354]
[1718737324481,2.93505,3407.1,3406.6,2.9354]
[1718737324800,2.93505,3407.1,3406.8,2.9353]
[1718737325003,2.93498,3407.2,3406.8,2.9353]
[1718737325380,2.93485,3407.4,3406.6,2.93542]
[1718737325716,2.93485,3407.4,3407.0,2.93506]
[1718737325887,2.93504,3407.1,3406.8,2.93528]
[1718737326715,2.93504,3407.1,3406.7,2.93532]
[1718737327684,2.3882,3407.3,3405.7,2.3055]
[1718737327885,2.9354,3406.7,3405.9,2.93605]
[1718737328083,2.93548,3406.6,3406.1,2.93588]
[1718737328282,2.93572,3406.4,3406.0,2.93598]
[1718737328818,2.936,3406.0,3405.7,2.93619]
[1718737329027,2.79,3406.0,3405.7,2.93619]
[1718737329394,2.79,3406.0,3405.5,5.87276]
[1718737329595,2.79,3406.0,3405.5,1.339821]
[1718737329952,2.93633,3405.7,3405.1,2.93675]
[1718737330894,2.93637,3405.6,3405.1,2.93675]
[1718737331090,2.8740125,3406.4,3404.7,7.52956]
[1718737331091,2.93624,3405.8,3405.3,2.93658]
[1718737331296,2.936,3406.0,3405.4,0.293658]
[1718737331504,2.93575,3406.3,3405.5,2.93637]
[1718737331825,2.4021,3407.0,3406.2,2.93581]
[1718737331985,2.93532,3406.8,3406.2,2.93581]
[1718737332187,3.62446485,3407.4,3406.3,2.113]
[1718737332387,2.93494,3407.3,3406.8,2.93523]
[1718737332606,2.93494,3407.3,3406.8,2.64063]
[1718737333019,2.93512,3407.1,3406.4,5.32411]
[1718737333221,2.93523,3406.9,3406.5,2.93554]
[1718737333420,2.93479,3407.4,3406.8,2.93523]
[1718737333421,2.93488,3407.3,3406.8,2.93523]
[1718737333726,2.93506,3407.1,3406.7,2.93537]
[1718737333895,2.93555,3406.6,3406.0,2.93598]
[1718737334098,2.9354,3406.7,3406.2,2.9358]
[1718737334336,2.9354,3406.7,3406.3,2.93573]
[1718737334843,2.93547,3406.6,3406.0,2.93598]
[1718737335135,2.93549,3406.6,3406.1,2.9359]
[1718737335543,2.93549,3406.6,3406.2,2.9358]
[1718737335916,2.9356,3406.5,3406.0,2.93598]
[1718737336312,2.9354,3406.7,3406.2,2.93581]
[1718737337257,2.93566,3406.4,3405.8,2.93612]
[1718737337424,2.9359,3406.1,3405.5,2.93634]
[1718737337935,2.9359,3406.1,3405.6,2.93626]
[1718737338120,2.93574,3406.3,3405.4,2.9365]
[1718737338121,2.9361,3405.9,3405.4,2.9365]
[1718737338320,2.93618,3405.8,3405.3,5.04952]
[1718737338549,2.93618,3405.8,3405.4,2.9365]
[1718737338732,2.93635,3405.6,3405.1,2.93669]
[1718737338931,2.93643,3405.5,3405.1,2.93669]
[1718737339312,2.93635,3405.6,3405.1,2.93669]
[1718737339517,2.93627,3405.7,3405.2,2.93665]
[1718737340235,2.93608,3405.9,3405.4,2.9365]
[1718737340458,2.93617,3405.8,3405.4,2.9365]
[1718737340648,2.93635,3405.6,3405.1,2.93675]
[1718737341838,2.93601,3406.0,3404.3,0.05112567]
[1718737342161,2.93601,3406.0,3403.6,0.61300878]
[1718737342162,2.93727,3404.6,3403.7,2.93793]
[1718737342464,2.93727,3404.6,3403.3,5.3607]
[1718737342465,2.93753,3404.3,3403.6,2.93803]
[1718737342629,2.93753,3404.3,3403.7,0.798926]
[1718737342963,2.93739,3404.4,3403.9,2.93779]
[1718737343346,2.93739,3404.4,3403.8,2.93788]
[1718737343547,2.9377,3404.1,3403.4,2.113]
[1718737343741,2.93756,3404.2,3403.6,2.93803]
[1718737343930,1.22236485,3404.8,3403.5,1.041208]
[1718737344468,2.93719,3404.7,3404.2,2.93753]
[1718737344835,2.93738,3404.4,3403.6,2.93801]
[1718737345062,1.00334949,3404.7,3403.5,1.041208]
[1718737345268,1.22236485,3404.8,3403.6,2.93799]
[1718737345269,2.9377,3404.1,3403.6,2.93799]
[1718737345497,2.93754,3404.3,3403.3,2.3607]
[1718737345688,2.93791,3403.8,3402.9,2.84]
[1718737345839,2.93817,3403.5,3402.9,2.84]
[1718737346175,2.93834,3403.3,3402.9,2.84]
[1718737346368,2.93834,3403.3,3402.9,3.417874]
[1718737346771,2.93834,3403.3,3402.6,2.93885]
[1718737346944,2.9385,3403.1,3402.6,2.93885]
[1718737347475,2.93834,3403.3,3402.7,2.93882]
[1718737347636,2.93824,3403.4,3402.8,2.93867]
[1718737347848,2.93849,3403.2,3402.8,0.830155]
[1718737348051,2.93825,3403.4,3402.8,2.93867]
[1718737348275,8.552004,3404.2,3403.2,2.93839]
[1718737348276,5.614454,3404.2,3403.2,2.93839]
[1718737348459,2.93803,3403.7,3403.2,2.93839]
[1718737348675,2.93772,3404.0,3403.2,2.93839]
[1718737348872,2.93808,3403.6,3402.1,2.93936]
[1718737349052,2.93808,3403.6,3402.3,3.0]
[1718737349388,2.93808,3403.6,3403.1,2.93843]
[1718737349752,2.93789,3403.8,3403.1,2.93843]
[1718737350177,2.93789,3403.8,3403.3,2.9383]
[1718737350490,2.93789,3403.8,3403.1,2.93843]
[1718737350491,2.93814,3403.6,3403.1,2.93842]
[1718737350703,2.93814,3403.6,3402.9,5.87716]
[1718737350855,2.93814,3403.6,3403.1,2.93848]
[1718737352454,2.93814,3403.6,3402.6,2.93889]
[1718737352455,2.93843,3403.2,3402.6,2.93892]
[1718737352823,2.93883,3402.8,3402.0,2.93939]
[1718737353115,2.93874,3402.9,3402.4,2.9391]
[1718737353320,2.93868,3402.9,3402.3,2.93916]
[1718737353607,2.9385,3403.1,3402.4,2.93902]
[1718737354426,2.93867,3402.9,3402.4,2.93902]
[1718737354556,2.9385,3403.1,3402.0,3.17279]
[1718737354557,2.2525,3403.3,3402.0,0.2334]
[1718737354760,2.93912,3402.4,3401.9,2.93946]
[1718737355068,2.2525,3403.3,3401.6,5.76178]
[1718737355272,5.2525,3403.3,3402.0,2.93941]
[1718737355505,2.93918,3402.4,3401.8,2.93958]
[1718737355681,1.119076,3403.2,3401.7,2.9397]
[1718737355682,2.9386,3403.0,3401.7,2.93969]
[1718737355982,1.119076,3403.2,3401.3,1.84247666]
[1718737355983,2.93944,3402.0,3401.3,1.84247666]
[1718737356182,2.93954,3401.9,3401.3,1.84247666]
[1718737356384,2.93996,3401.4,3401.3,1.84247666]
[1718737356711,0.293954,3401.9,3401.3,1.84247666]
[1718737356926,3.0,3402.6,3401.3,1.84247666]
[1718737356927,2.9398,3401.6,3401.3,1.84247666]
[1718737357211,2.93973,3401.7,3401.3,1.84247666]
[1718737357413,2.93981,3401.6,3401.3,1.84247666]
[1718737357624,2.93988,3401.5,3401.3,1.84247666]
[1718737357857,2.93979,3401.6,3401.3,1.84247666]
[1718737357976,2.93996,3401.4,3401.3,1.84247666]
[1718737358585,2.94015,3401.2,3400.7,2.94055]
[1718737359243,2.93964,3401.8,3401.0,2.94028]
[1718737359511,2.93989,3401.5,3401.0,2.9403]
[1718737359876,2.93998,3401.4,3400.8,2.94047]
[1718737360082,2.93989,3401.5,3400.8,2.94048]
[1718737360281,0.23136,3402.2,3400.5,3.46067]
[1718737360533,2.93947,3402.0,3401.5,2.9398]
[1718737360845,2.93953,3401.9,3401.0,2.94024]
[1718737361137,2.93953,3401.9,3400.5,0.51994]
[1718737361138,2.93951,3402.0,3400.5,2.94073]
[1718737361439,2.9404,3400.9,3400.1,2.94101]
[1718737361731,2.93995,3401.5,3399.2,0.05114615]
[1718737361732,2.4306,3400.5,3399.2,0.05114615]
[1718737361881,2.4306,3400.5,3399.0,2.418]
[1718737362082,2.4306,3400.5,3399.5,2.94156]
[1718737362083,2.941,3400.2,3399.5,2.94156]
[1718737362319,2.941,3400.2,3399.1,2.94191]
[1718737362494,2.4306,3400.5,3399.4,2.94166]
[1718737362495,2.94109,3400.1,3399.4,2.94166]
[1718737362705,2.94111,3400.1,3399.2,2.94185]
[1718737362881,2.94084,3400.4,3399.9,2.9412]
[1718737363088,2.4712,3401.1,3399.1,2.822]
[1718737363285,2.4712,3401.1,3399.6,2.822]
[1718737363530,2.4712,3401.1,3400.2,2.94099]
[1718737363840,2.4712,3401.1,3399.2,0.3041248]
[1718737364148,2.4712,3401.1,3399.1,2.94195]
[1718737364355,4.70317,3401.2,3399.1,2.94195]
[1718737364356,2.4384,3400.2,3399.1,2.94187]
[1718737364486,2.4384,3400.2,3399.1,2.9419]
[1718737364487,2.94144,3399.7,3399.1,2.9419]
[1718737364686,2.94117,3400.0,3399.0,2.94201]
[1718737364687,2.94164,3399.5,3399.0,2.94201]
[1718737364947,2.94133,3399.9,3399.4,2.94166]
[1718737365101,2.94145,3399.7,3399.0,2.94196]
[1718737365435,2.94169,3399.4,3398.9,2.94212]
[1718737365802,2.94157,3399.6,3399.0,2.94201]
[1718737366009,2.94162,3399.5,3399.0,2.94201]
[1718737366199,0.318517,3399.8,3398.7,0.294232]
[1718737366403,2.94136,3399.8,3399.3,2.94176]
[1718737366630,2.94136,3399.8,3398.6,2.822]
[1718737366631,2.94116,3400.1,3398.7,2.94226]
[1718737366831,2.94187,3399.2,3398.6,2.94236]
[1718737367151,2.94229,3398.8,3398.2,2.9427]
[1718737367309,2.94242,3398.6,3398.0,2.94282]
[1718737367633,2.3172,3399.1,3398.2,2.94272]
[1718737367634,2.94232,3398.7,3398.2,2.94272]
[1718737367838,2.94221,3398.8,3398.2,2.94272]
[1718737368047,2.94221,3398.8,3398.0,0.294282]
[1718737368048,2.9424,3398.6,3398.1,2.94281]
[1718737368205,2.3172,3399.1,3395.7,3.24124236]
[1718737368206,2.3172,3399.1,3397.2,1.178492]
[1718737368393,2.94223,3398.8,3397.2,1.178492]
[1718737368735,2.94256,3398.4,3397.2,1.178492]
[1718737368917,3.349223,3398.7,3397.6,2.94316]
[1718737369121,2.94274,3398.2,3397.2,1.178492]
[1718737369322,2.94305,3397.9,3397.3,2.94351]
[1718737369508,3.0,3399.0,3397.2,1.178492]
[1718737369509,2.94239,3398.6,3398.1,2.94281]
[1718737369712,2.94226,3398.8,3398.3,2.94263]
[1718737369907,5.24278,3399.8,3398.3,2.94256]
[1718737370107,5.24278,3399.8,3398.1,2.94278]
[1718737370108,2.94198,3399.1,3398.1,2.94278]
[1718737370311,2.94198,3399.1,3397.9,2.822]
[1718737370312,2.94181,3399.3,3397.9,2.822]
[1718737370614,2.94161,3399.5,3398.9,2.94204]
[1718737371017,2.94169,3399.4,3398.5,2.9424]
[1718737371397,3.0,3399.3,3398.5,2.9424]
[1718737371817,2.94189,3399.2,3398.7,2.94227]
[1718737372630,3.0,3399.8,3399.0,2.94199]
[1718737372806,2.94127,3399.9,3399.4,2.94169]
[1718737373009,2.94068,3400.6,3398.8,2.94219]
[1718737373215,2.94068,3400.6,3398.0,4.763]
[1718737373216,2.94039,3400.9,3399.3,2.94177]
[1718737373420,2.94039,3400.9,3399.1,2.94192]
[1718737373421,2.94059,3400.7,3400.1,2.94102]
[1718737373728,0.35921645,3400.9,3399.8,2.94134]
[1718737373729,2.94083,3400.4,3399.8,2.94134]
[1718737373925,2.94101,3400.2,3399.7,2.94143]
[1718737374103,2.94127,3399.9,3399.2,2.94186]
[1718737374300,2.94092,3400.3,3399.1,2.94193]
[1718737374301,2.94117,3400.0,3399.1,2.94193]
[1718737374517,2.94117,3400.0,3399.5,2.94158]
[1718737374717,2.94109,3400.1,3399.4,2.94163]
[1718737375128,2.94109,3400.1,3399.2,2.9418]
[1718737375129,2.94144,3399.7,3399.2,2.9418]
[1718737375320,2.94144,3399.7,3398.5,2.94245]
[1718737375321,3.235594,3399.7,3398.5,2.94245]
[1718737375520,2.94164,3399.5,3398.4,2.822]
[1718737375741,2.94188,3399.2,3398.5,2.94241]
[1718737376040,2.94197,3399.1,3398.5,2.94241]
[1718737376206,2.94197,3399.1,3398.6,2.94238]
[1718737376409,2.94148,3399.7,3399.0,2.94204]
[1718737376626,12.38,3400.7,3399.3,2.94177]
[1718737376627,5.94109,3400.1,3399.3,2.94177]
[1718737376919,2.94126,3399.9,3399.0,2.94204]
[1718737377110,2.9416,3399.6,3399.0,2.94204]
[1718737377306,2.94152,3399.6,3399.1,2.94193]
[1718737377539,6.535556,3399.8,3399.1,2.94193]
[1718737377704,2.94144,3399.7,3399.2,2.94186]
[1718737377899,2.94154,3399.6,3398.9,2.94204]
[1718737378140,2.94154,3399.6,3398.7,2.94225]
[1718737378141,2.94161,3399.5,3399.0,2.94196]
[1718737378309,2.94161,3399.5,3398.2,2.822]
[1718737378310,2.94212,3398.9,3398.3,2.94261]
[1718737378515,2.94225,3398.8,3398.3,2.94261]
[1718737378711,10.31188,3399.2,3398.0,2.94282]
[1718737378712,2.94245,3398.6,3398.0,2.94282]
[1718737378910,7.37,3399.2,3397.7,2.822]
[1718737378911,2.9423,3398.7,3398.2,2.94273]
[1718737379308,2.94212,3398.9,3398.1,2.94281]
[1718737379506,0.44340849,3398.8,3398.4,2.94254]
[1718737379812,0.44340849,3398.8,3398.5,2.94247]
[1718737380013,3.0,3398.9,3398.5,2.94247]
[1718737380210,3.0,3398.9,3398.3,2.94262]
[1718737380462,7.37,3399.2,3398.3,2.94259]
[1718737380625,7.37,3399.2,3398.0,2.94288]
[1718737380626,2.94212,3398.9,3398.0,2.9429]
[1718737380934,8.401167,3399.2,3398.3,2.94258]
[1718737380935,2.94224,3398.8,3398.3,2.94258]
[1718737381233,1.031167,3399.2,3397.7,2.822]
[1718737381234,1.031167,3399.2,3397.7,5.76515]
[1718737381400,2.9419,3399.2,3397.8,2.94307]
[1718737381605,5.94201,3399.1,3398.2,2.94273]
[1718737381809,5.94182,3399.3,3397.7,2.822]
[1718737382116,2.94205,3399.0,3398.5,2.94247]
[1718737382334,2.94193,3399.2,3398.5,2.94247]
[1718737382335,2.94187,3399.2,3398.6,2.9423]
[1718737382557,3.0,3399.3,3398.4,2.94255]
[1718737382720,2.94204,3399.0,3398.5,2.94244]
[1718737383048,2.94195,3399.1,3398.6,2.94236]
[1718737383247,2.94206,3399.0,3398.1,2.94277]
[1718737383446,2.94221,3398.8,3398.2,2.94273]
[1718737383648,2.94198,3399.1,3398.2,2.94273]
[1718737383823,2.94198,3399.1,3398.6,2.94237]
[1718737384012,0.3594171,3399.2,3398.4,2.94247]
[1718737384013,0.92431771,3399.0,3398.4,2.94247]
[1718737384211,2.94141,3399.8,3398.3,2.94256]
[1718737384438,2.3377,3400.0,3397.2,9.98722]
[1718737384439,2.94092,3400.3,3399.3,2.94174]
[1718737384747,2.94118,3400.0,3399.3,2.94177]
[1718737384919,3.235458,3399.9,3399.3,2.94177]
[1718737385115,2.94134,3399.9,3399.4,2.94161]
[1718737385346,2.94118,3400.0,3399.5,2.9416]
[1718737385873,2.94118,3400.0,3399.3,2.94177]
[1718737386146,2.94143,3399.7,3399.2,2.9418]
[1718737386526,7.37,3400.0,3399.5,2.94153]
[1718737386724,7.37,3400.0,3399.6,2.94151]
[1718737386934,7.37,3400.0,3399.4,2.94166]
[1718737386935,11.936398,3400.0,3399.4,2.9416]
[1718737387246,11.936398,3400.0,3399.5,2.9416]
[1718737387618,1.625208,3400.0,3399.4,2.94169]
[1718737387816,2.94109,3400.1,3399.4,2.94169]
[1718737388319,2.94126,3399.9,3399.4,2.94169]
[1718737388751,2.94169,3399.4,3399.0,2.64697]
[1718737389059,10.31143,3399.8,3399.1,2.94194]
[1718737389308,2.94153,3399.6,3399.2,2.94186]
[1718737389594,2.94146,3399.7,3399.1,2.94187]
[1718737389755,2.94154,3399.6,3399.1,2.94187]
[1718737389945,7.37,3399.8,3398.3,2.822]
[1718737390187,7.37,3399.8,3399.5,2.94153]
[1718737390349,2.94119,3400.0,3399.1,2.94195]
[1718737390653,2.94119,3400.0,3398.8,5.76421]
[1718737390654,7.37,3400.3,3400.2,2.941]
[1718737390843,10.3104,3400.9,3400.4,2.94082]
[1718737391044,10.3104,3400.9,3400.2,2.941]
[1718737391045,2.93993,3401.5,3400.9,2.94037]
[1718737391248,2.93969,3401.8,3400.8,2.822]
[1718737391249,2.93981,3401.6,3400.8,2.822]
[1718737391446,2.94007,3401.3,3400.3,2.822]
[1718737391683,2.94057,3400.7,3400.1,2.94107]
[1718737391882,2.94048,3400.9,3399.8,2.822]
[1718737392182,2.94048,3400.9,3399.3,2.364]
[1718737392183,1.031048,3400.9,3399.3,2.364]
[1718737392347,1.031048,3400.9,3399.3,5.186]
[1718737392552,2.94048,3400.8,3400.3,2.9409]
[1718737392882,2.94048,3400.8,3400.2,2.94099]
[1718737392883,4.3687618,3400.7,3400.2,2.94099]
[1718737393079,2.94126,3399.9,3399.4,2.94168]
[1718737393297,2.94145,3399.7,3399.0,2.822]
[1718737393497,10.31093,3400.3,3398.7,2.94223]
[1718737393652,2.9417,3399.4,3398.9,2.94211]
[1718737393983,2.94161,3399.5,3399.0,2.94204]
[1718737394281,10.31135,3399.8,3398.4,2.94252]
[1718737394282,2.94204,3399.0,3398.4,2.94252]
[1718737394478,2.94213,3398.9,3398.4,2.94247]
[1718737394679,2.94213,3398.9,3398.2,2.94266]
[1718737394885,2.94213,3398.9,3398.3,2.94264]
[1718737395104,2.94213,3398.9,3398.5,2.94247]
[1718737395376,2.94213,3398.9,3398.1,5.7648]
[1718737395377,2.94238,3398.7,3398.1,5.76476]
[1718737395877,2.94284,3398.1,3397.6,2.94322]
[1718737396080,1.3548334,3398.9,3397.2,2.822]
[1718737396081,2.9427,3398.3,3397.2,2.822]
[1718737396379,2.9427,3398.3,3397.6,2.94325]
[1718737396578,2.94282,3398.1,3397.6,2.94317]
[1718737396786,2.94274,3398.2,3397.7,2.94315]
[1718737396992,7.37,3398.5,3397.2,2.822]
[1718737397195,7.37,3398.5,3397.9,2.94296]
[1718737397196,3.0,3398.4,3397.9,2.94296]
[1718737397360,3.0,3398.4,3398.0,2.9429]
[1718737397558,2.94251,3398.5,3397.9,2.94296]
[1718737397894,2.94282,3398.2,3397.2,2.94353]
[1718737398192,3.0,3398.4,3397.3,2.94351]
[1718737398193,2.94313,3397.8,3397.3,2.94351]
[1718737398962,5.9426,3398.4,3397.6,2.94322]
[1718737399269,2.94212,3399.0,3397.6,0.588669]
[1718737399468,2.94269,3398.3,3397.8,2.94307]
[1718737399672,5.94234,3398.7,3397.5,5.76532]
[1718737399880,5.94234,3398.7,3398.3,2.9426]
[1718737399881,3.0,3398.7,3398.3,2.9426]
[1718737400108,15.32179,3399.3,3397.6,0.2822]
[1718737400109,7.37,3399.1,3398.2,2.94269]
[1718737400408,7.37,3399.1,3398.4,2.94247]
[1718737400563,7.37,3399.1,3399.0,2.94204]
[1718737400900,12.38,3399.9,3398.9,2.94209]
[1718737400901,2.9416,3399.5,3398.9,2.94209]
[1718737401389,2.9416,3399.5,3398.5,2.94243]
[1718737401390,2.94178,3399.3,3398.5,2.94243]
[1718737401588,2.94178,3399.3,3397.2,0.61300878]
[1718737401589,2.94261,3398.4,3397.7,2.822]
[1718737401791,1.325303,3399.4,3397.7,5.76516]
[1718737401792,7.37,3398.7,3397.7,5.76516]
[1718737401994,7.37,3398.7,3397.1,0.05110937]
[1718737401995,2.94295,3398.0,3397.1,0.05110937]
[1718737402200,2.94272,3398.3,3396.6,2.94412]
[1718737402201,2.94359,3397.3,3396.6,2.94412]
[1718737402360,2.94343,3397.4,3396.6,3.815166]
[1718737402560,2.94363,3397.2,3396.6,2.94411]
[1718737402924,2.9437,3397.1,3396.5,2.9442]
[1718737403122,2.94378,3397.0,3396.5,0.883284]
[1718737403298,2.94378,3397.0,3396.4,2.9442]
[1718737403966,2.94342,3397.5,3396.7,2.94399]
[1718737404166,2.94376,3397.1,3396.5,2.94415]
[1718737404386,2.94362,3397.2,3396.5,2.94412]
[1718737404576,7.37,3397.6,3396.6,2.94411]
[1718737404785,2.94351,3397.3,3396.7,2.94395]
[1718737405101,2.94351,3397.3,3396.8,2.94391]
[1718737405320,2.94342,3397.5,3396.4,2.94425]
[1718737405466,2.94342,3397.5,3396.0,2.822]
[1718737405467,7.37,3397.6,3395.8,3.0]
[1718737405668,2.94346,3397.4,3396.4,2.94428]
[1718737405996,2.94414,3396.6,3396.1,2.94453]
[1718737406300,2.94396,3396.8,3396.2,2.94446]
[1718737406480,2.94396,3396.8,3396.3,2.94437]
[1718737406674,2.94389,3396.9,3396.3,2.94434]
[1718737406972,2.94398,3396.8,3396.3,2.94434]
[1718737407200,2.94439,3396.3,3395.0,2.40605]
[1718737407563,2.94439,3396.3,3395.7,2.94488]
[1718737407802,2.94433,3396.4,3395.7,2.94485]
[1718737408009,2.498,3396.2,3394.5,0.05114939]
[1718737408161,2.498,3396.2,3394.4,0.46168551]
[1718737408162,2.94535,3395.2,3394.4,0.46168551]
[1718737408371,2.94535,3395.2,3393.8,0.006]
[1718737408372,2.94522,3395.4,3393.8,0.006]
[1718737408705,2.792535,3395.1,3393.8,0.006]
[1718737408868,2.94615,3394.3,3393.8,0.006]
[1718737409070,2.94522,3395.4,3393.8,0.006]
[1718737409071,2.87608449,3395.6,3393.8,0.006]
[1718737409383,2.94517,3395.4,3394.0,2.94634]
[1718737409581,2.498,3395.6,3393.8,2.95252]
[1718737409904,2.94526,3395.3,3394.2,2.94616]
[1718737410123,3.0,3395.2,3393.8,0.006]
[1718737410270,2.94631,3394.1,3393.8,0.006]
[1718737410609,4.49400936,3395.1,3393.8,0.006]
[1718737410610,4.90190033,3395.0,3393.8,0.006]
[1718737410783,3.0,3395.0,3393.8,0.006]
[1718737412968,2.94554,3395.0,3394.4,2.94602]
[1718737413192,2.9456,3394.9,3394.3,2.9461]
[1718737413392,2.94554,3395.0,3394.4,2.94601]
[1718737413596,2.94533,3395.2,3393.8,0.006]
[1718737413798,2.94537,3395.2,3394.2,2.94617]
[1718737414206,2.4628,3395.4,3392.6,0.05116086]
[1718737414381,2.94592,3394.6,3392.6,0.05116086]
[1718737414704,2.94575,3394.8,3393.9,2.94646]
[1718737414877,2.94569,3394.8,3394.2,2.94614]
[1718737415207,2.94529,3395.3,3394.6,2.94585]
[1718737415208,2.94525,3395.3,3394.6,2.94585]
[1718737415369,7.37,3395.6,3394.6,0.294585]
[1718737415572,7.37,3395.6,3393.4,3.571]
[1718737415774,7.37,3395.6,3392.9,2.9473]
[1718737415775,2.94587,3394.6,3393.9,2.94646]
[1718737415971,2.9457,3394.8,3393.8,2.94654]
[1718737416174,2.9457,3394.8,3393.5,0.55]
[1718737416175,10.31559,3394.9,3394.0,2.94636]
[1718737416468,2.94578,3394.7,3393.9,3.241104]
[1718737416692,7.37,3394.9,3394.2,2.94619]
[1718737416897,7.37,3394.9,3394.1,2.94626]
[1718737417100,7.37,3394.9,3394.8,2.94568]
[1718737417303,10.31509,3395.5,3394.9,2.94559]
[1718737417476,10.31509,3395.5,3394.4,2.94599]
[1718737417676,10.31509,3395.5,3394.6,2.94583]
[1718737417677,2.94543,3395.1,3394.6,2.94583]
[1718737417905,2.94533,3395.3,3393.9,1.33103]
[1718737418209,2.94516,3395.4,3394.9,2.94556]
[1718737418506,2.9452,3395.4,3394.8,2.94568]
[1718737418868,7.37,3395.5,3394.8,2.94568]
[1718737419267,2.94516,3395.4,3394.8,2.94568]
[1718737419467,1.326015,3395.4,3394.4,2.94598]
[1718737419714,1.326015,3395.4,3394.0,0.427756]
[1718737419715,2.94565,3394.9,3394.0,0.427756]
[1718737419918,2.94576,3394.8,3394.0,2.94632]
[1718737420076,2.94534,3395.2,3394.1,2.94627]
[1718737420271,1.326015,3395.4,3394.6,2.94585]
[1718737420272,2.94517,3395.4,3394.6,2.94585]
[1718737420476,7.37,3395.5,3395.1,2.94541]
[1718737420702,14.7095,3396.0,3394.7,0.58918]
[1718737420703,7.37,3395.9,3395.3,2.94516]
[1718737420876,7.37,3395.9,3395.3,2.94517]
[1718737421193,7.37,3395.9,3395.4,2.94512]
[1718737421375,7.37,3395.9,3395.3,2.94517]
[1718737421376,7.37,3395.9,3395.3,2.94524]
[1718737421719,2.1701648,3395.8,3395.3,2.94524]
[1718737421927,2.1701648,3395.8,3395.3,2.94516]
[1718737422096,7.37,3395.9,3394.6,2.9458]
[1718737422294,7.37,3395.9,3395.8,2.94481]